[Event "Titled Tuesday Blitz August 08 Early 2023"]
[White "Skuhala, Barbara"]
[Black "Petrosian, Karlen"]
[WhiteFideId "14605465"]
[BlackFideId "4176146"]
[WhiteElo "2351"]
[BlackElo "2662"]
[Result "0-1"]
[Round "1"]
[TimeControl "180+1"]
[Date "2023.08.08"]
[WhiteClock "0:00:31"]
[BlackClock "0:00:16"]
[Board "155"]

1. e4 {[%clk 0:03:00]}  e6 {[%clk 0:02:43]} 2. d4 {[%clk 0:02:59]}  d5 {[%clk 0:02:38]} 3. Nc3 {[%clk 0:02:59]}  Nf6 {[%clk 0:02:33]} 4. Bg5 {[%clk 0:02:58]}  dxe4 {[%clk 0:02:21]} 5. Nxe4 {[%clk 0:02:57]}  Be7 {[%clk 0:02:14]} 6. Bxf6 {[%clk 0:02:56]}  gxf6 {[%clk 0:02:13]} 7. Nf3 {[%clk 0:02:55]}  f5 {[%clk 0:02:07]} 8. Ng3 {[%clk 0:02:54]}  h5 {[%clk 0:02:04]} 9. Qd3 {[%clk 0:02:53]}  h4 {[%clk 0:02:03]} 10. Ne2 {[%clk 0:02:53]}  a6 {[%clk 0:02:03]} 11. O-O-O {[%clk 0:02:53]}  Nc6 {[%clk 0:02:01]} 12. Kb1 {[%clk 0:02:48]}  Nb4 {[%clk 0:01:58]} 13. Qb3 {[%clk 0:02:47]}  b5 {[%clk 0:01:57]} 14. c3 {[%clk 0:02:47]}  Nd5 {[%clk 0:01:55]} 15. Ne5 {[%clk 0:02:47]}  Nb6 {[%clk 0:01:48]} 16. f4 {[%clk 0:02:41]}  Bb7 {[%clk 0:01:47]} 17. Rg1 {[%clk 0:02:40]}  Bd5 {[%clk 0:01:44]} 18. c4 {[%clk 0:02:33]}  Nxc4 {[%clk 0:01:42]} 19. Nxc4 {[%clk 0:02:33]}  Bxc4 {[%clk 0:01:43]} 20. Qf3 {[%clk 0:02:32]}  Qd5 {[%clk 0:01:42]} 21. Nc3 {[%clk 0:02:25]}  Qxf3 {[%clk 0:01:40]} 22. gxf3 {[%clk 0:02:25]}  Bxf1 {[%clk 0:01:37]} 23. Rgxf1 {[%clk 0:02:26]}  c6 {[%clk 0:01:37]} 24. Ne2 {[%clk 0:02:18]}  Rg8 {[%clk 0:01:35]} 25. Rf2 {[%clk 0:02:16]}  Kd7 {[%clk 0:01:33]} 26. Nc1 {[%clk 0:02:16]}  Bd6 {[%clk 0:01:32]} 27. Nd3 {[%clk 0:02:16]}  Kc7 {[%clk 0:01:28]} 28. Rc2 {[%clk 0:02:14]}  Kb6 {[%clk 0:01:24]} 29. Rdc1 {[%clk 0:02:14]}  Rac8 {[%clk 0:01:23]} 30. a3 {[%clk 0:02:12]}  h3 {[%clk 0:01:20]} 31. b4 {[%clk 0:02:08]}  Rg2 {[%clk 0:01:14]} 32. Kb2 {[%clk 0:02:05]}  Rxc2+ {[%clk 0:01:06]} 33. Rxc2 {[%clk 0:02:05]}  Rg8 {[%clk 0:01:07]} 34. Kc3 {[%clk 0:02:04]}  Rg1 {[%clk 0:01:00]} 35. Kb3 {[%clk 0:02:03]}  Rf1 {[%clk 0:00:55]} 36. Rf2 {[%clk 0:02:00]}  Rxf2 {[%clk 0:00:54]} 37. Nxf2 {[%clk 0:02:01]}  Bxf4 {[%clk 0:00:55]} 38. Nxh3 {[%clk 0:02:01]}  Bxh2 {[%clk 0:00:55]} 39. Ng5 {[%clk 0:02:01]}  Bf4 {[%clk 0:00:35]} 40. Nxf7 {[%clk 0:01:58]}  Kc7 {[%clk 0:00:36]} 41. Nh8 {[%clk 0:01:31]}  Kd7 {[%clk 0:00:34]} 42. Ng6 {[%clk 0:01:30]}  Bg3 {[%clk 0:00:35]} 43. f4 {[%clk 0:01:10]}  Kd6 {[%clk 0:00:33]} 44. Kc3 {[%clk 0:01:08]}  a5 {[%clk 0:00:30]} 45. bxa5 {[%clk 0:01:06]}  Be1+ {[%clk 0:00:29]} 46. Kd3 {[%clk 0:01:03]}  Bxa5 {[%clk 0:00:30]} 47. Ne5 {[%clk 0:01:02]}  Kd5 {[%clk 0:00:25]} 48. Nd7 {[%clk 0:01:00]}  Bc7 {[%clk 0:00:18]} 49. Nf6+ {[%clk 0:00:58]}  Kd6 {[%clk 0:00:17]} 50. Ke3 {[%clk 0:00:58]}  Ke7 {[%clk 0:00:17]} 51. Nh5 {[%clk 0:00:55]}  Bd6 {[%clk 0:00:16]} 52. Ng3 {[%clk 0:00:50]}  Bxa3 {[%clk 0:00:16]} 53. Ne2 {[%clk 0:00:49]}  Kd6 {[%clk 0:00:15]} 54. Kd3 {[%clk 0:00:50]}  Bb4 {[%clk 0:00:15]} 55. Nc1 {[%clk 0:00:44]}  Ba5 {[%clk 0:00:15]} 56. Ne2 {[%clk 0:00:43]}  Bc7 {[%clk 0:00:15]} 57. Nc3 {[%clk 0:00:42]}  Ke7 {[%clk 0:00:15]} 58. Na2 {[%clk 0:00:39]}  Bxf4 {[%clk 0:00:15]} 59. Nb4 {[%clk 0:00:38]}  Kd7 {[%clk 0:00:15]} 60. Nc2 {[%clk 0:00:37]}  Bd6 {[%clk 0:00:15]} 61. Ke3 {[%clk 0:00:37]}  c5 {[%clk 0:00:15]} 62. dxc5 {[%clk 0:00:36]}  Bxc5+ {[%clk 0:00:16]} 63. Kf4 {[%clk 0:00:36]}  Ke7 {[%clk 0:00:17]} 64. Ke5 {[%clk 0:00:36]}  Bd6+ {[%clk 0:00:17]} 65. Kd4 {[%clk 0:00:36]}  Kf6 {[%clk 0:00:17]} 66. Ne3 {[%clk 0:00:36]}  f4 {[%clk 0:00:16]} 67. Nf1 {[%clk 0:00:34]}  Kf5 {[%clk 0:00:16]} 68. Kd3 {[%clk 0:00:34]}  e5 {[%clk 0:00:16]} 69. Ke2 {[%clk 0:00:35]}  e4 {[%clk 0:00:16]} 70. Kf2 {[%clk 0:00:34]}  Bc5+ {[%clk 0:00:15]} 71. Ke2 {[%clk 0:00:34]}  f3+ {[%clk 0:00:15]} 72. Ke1 {[%clk 0:00:34]}  Kf4 {[%clk 0:00:15]} 73. Nd2 {[%clk 0:00:31]}  Bb4 {[%clk 0:00:16]} 0-1


[Site "https://www.chess.com"]

[Event "Titled Tuesday Blitz August 08 Early 2023"]
[White "Korpics, Zsolt"]
[Black "Goh, Wei Ming Kevin"]
[WhiteFideId "705241"]
[BlackFideId "5800706"]
[WhiteElo "2347"]
[BlackElo "2662"]
[Result "0-1"]
[Round "1"]
[TimeControl "180+1"]
[Date "2023.08.08"]
[WhiteClock "0:00:00"]
[BlackClock "0:00:28"]
[Board "157"]

1. e4 {[%clk 0:02:50]}  c5 {[%clk 0:02:59]} 2. Nf3 {[%clk 0:02:49]}  d6 {[%clk 0:02:56]} 3. Nc3 {[%clk 0:02:49]}  Nf6 {[%clk 0:02:55]} 4. e5 {[%clk 0:02:49]}  dxe5 {[%clk 0:02:49]} 5. Nxe5 {[%clk 0:02:50]}  Qc7 {[%clk 0:02:49]} 6. d4 {[%clk 0:02:43]}  e6 {[%clk 0:02:32]} 7. Bf4 {[%clk 0:01:59]}  Qb6 {[%clk 0:01:43]} 8. Nc4 {[%clk 0:01:29]}  Qd8 {[%clk 0:01:40]} 9. Nb5 {[%clk 0:01:26]}  Nd5 {[%clk 0:01:36]} 10. Nbd6+ {[%clk 0:00:58]}  Bxd6 {[%clk 0:01:36]} 11. Nxd6+ {[%clk 0:00:58]}  Ke7 {[%clk 0:01:27]} 12. Bg3 {[%clk 0:00:55]}  Nc6 {[%clk 0:01:22]} 13. dxc5 {[%clk 0:00:36]}  Qa5+ {[%clk 0:01:21]} 14. Qd2 {[%clk 0:00:30]}  Qxc5 {[%clk 0:01:20]} 15. O-O-O {[%clk 0:00:22]}  Rd8 {[%clk 0:01:15]} 16. Ne4 {[%clk 0:00:18]}  Qa5 {[%clk 0:01:10]} 17. Qg5+ {[%clk 0:00:17]}  Kf8 {[%clk 0:01:06]} 18. Bc4 {[%clk 0:00:12]}  h6 {[%clk 0:01:01]} 19. Qh5 {[%clk 0:00:10]}  Nce7 {[%clk 0:00:49]} 20. Nd6 {[%clk 0:00:10]}  Ng6 {[%clk 0:00:39]} 21. Qf3 {[%clk 0:00:04]}  Nf6 {[%clk 0:00:36]} 22. Ne4 {[%clk 0:00:03]}  Bd7 {[%clk 0:00:28]} 23. Nxf6 {[%clk 0:00:02]}  Bc6 {[%clk 0:00:28]} 24. Nh7+ {[%clk 0:00:01]}  Kg8 {[%clk 0:00:28]} 25. Qd3 {[%clk 0:00:00]}  Rxd3 {[%clk 0:00:28]} 0-1


[Site "https://www.chess.com"]

[Event "Titled Tuesday Blitz August 08 Early 2023"]
[White "Golubev, Mikhail"]
[Black "Topalov, Aleksandar"]
[WhiteFideId "14100983"]
[BlackFideId "925659"]
[WhiteElo "2655"]
[BlackElo "2341"]
[Result "1-0"]
[Round "1"]
[TimeControl "180+1"]
[Date "2023.08.08"]
[WhiteClock "0:00:12"]
[BlackClock "0:00:00"]
[Board "160"]

1. e4 {[%clk 0:03:00]}  e6 {[%clk 0:02:54]} 2. d4 {[%clk 0:02:59]}  d5 {[%clk 0:02:54]} 3. Nc3 {[%clk 0:02:59]}  Bb4 {[%clk 0:02:53]} 4. e5 {[%clk 0:02:59]}  Qd7 {[%clk 0:02:52]} 5. a3 {[%clk 0:02:56]}  Bxc3+ {[%clk 0:02:52]} 6. bxc3 {[%clk 0:02:56]}  b6 {[%clk 0:02:53]} 7. Qg4 {[%clk 0:02:56]}  f5 {[%clk 0:02:52]} 8. Qg3 {[%clk 0:02:56]}  Qf7 {[%clk 0:02:52]} 9. a4 {[%clk 0:02:40]}  Ba6 {[%clk 0:02:50]} 10. Bb5+ {[%clk 0:02:29]}  Bxb5 {[%clk 0:02:44]} 11. axb5 {[%clk 0:02:29]}  c6 {[%clk 0:02:43]} 12. c4 {[%clk 0:02:10]}  dxc4 {[%clk 0:02:36]} 13. Ne2 {[%clk 0:01:59]}  Qf8 {[%clk 0:02:30]} 14. O-O {[%clk 0:01:53]}  Ne7 {[%clk 0:02:28]} 15. Ba3 {[%clk 0:01:48]}  Qf7 {[%clk 0:02:27]} 16. Bxe7 {[%clk 0:01:28]}  Qxe7 {[%clk 0:02:22]} 17. Nf4 {[%clk 0:01:24]}  O-O {[%clk 0:02:14]} 18. Rfe1 {[%clk 0:01:15]}  Rd8 {[%clk 0:02:09]} 19. Qf3 {[%clk 0:01:04]}  Qd7 {[%clk 0:02:03]} 20. h4 {[%clk 0:00:56]}  a5 {[%clk 0:02:03]} 21. Rad1 {[%clk 0:00:41]}  a4 {[%clk 0:01:48]} 22. bxc6 {[%clk 0:00:38]}  Nxc6 {[%clk 0:01:48]} 23. d5 {[%clk 0:00:39]}  exd5 {[%clk 0:01:46]} 24. Nxd5 {[%clk 0:00:25]}  Qe6 {[%clk 0:01:20]} 25. Nc7 {[%clk 0:00:18]}  Nxe5 {[%clk 0:00:20]} 26. Qxa8 {[%clk 0:00:16]}  Rxa8 {[%clk 0:00:19]} 27. Nxe6 {[%clk 0:00:16]}  Nc6 {[%clk 0:00:13]} 28. Rd6 {[%clk 0:00:15]}  Rc8 {[%clk 0:00:11]} 29. Nd4 {[%clk 0:00:13]}  Nxd4 {[%clk 0:00:03]} 30. Rxd4 {[%clk 0:00:14]}  b5 {[%clk 0:00:04]} 31. Rb1 {[%clk 0:00:13]}  Rc5 {[%clk 0:00:03]} 32. c3 {[%clk 0:00:12]}  Kf7 {[%clk 0:00:00]} 33. Rd2 {[%clk 0:00:12]} 1-0


[Site "https://www.chess.com"]

[Event "Titled Tuesday Blitz August 08 Early 2023"]
[White "Peatman, Carter"]
[Black "Sokolovsky, Yahli"]
[WhiteFideId "2096480"]
[BlackFideId "2820242"]
[WhiteElo "2341"]
[BlackElo "2652"]
[Result "0-1"]
[Round "1"]
[TimeControl "180+1"]
[Date "2023.08.08"]
[WhiteClock "0:00:10"]
[BlackClock "0:00:12"]
[Board "161"]

1. d4 {[%clk 0:02:59]}  d6 {[%clk 0:02:56]} 2. e4 {[%clk 0:02:57]}  g6 {[%clk 0:02:57]} 3. Nc3 {[%clk 0:02:57]}  Nf6 {[%clk 0:02:49]} 4. f4 {[%clk 0:02:56]}  Bg7 {[%clk 0:02:46]} 5. Bd3 {[%clk 0:02:56]}  c5 {[%clk 0:02:42]} 6. Nf3 {[%clk 0:02:53]}  Bg4 {[%clk 0:02:35]} 7. dxc5 {[%clk 0:02:53]}  dxc5 {[%clk 0:02:29]} 8. e5 {[%clk 0:02:40]}  Nfd7 {[%clk 0:02:28]} 9. Be3 {[%clk 0:02:36]}  Nc6 {[%clk 0:02:27]} 10. h3 {[%clk 0:02:33]}  Bxf3 {[%clk 0:01:47]} 11. Qxf3 {[%clk 0:02:33]}  Nd4 {[%clk 0:01:42]} 12. Qxb7 {[%clk 0:02:00]}  O-O {[%clk 0:01:32]} 13. O-O {[%clk 0:01:47]}  Nb6 {[%clk 0:01:05]} 14. Rad1 {[%clk 0:01:31]}  Rb8 {[%clk 0:01:05]} 15. Qxa7 {[%clk 0:01:13]}  Nd5 {[%clk 0:01:06]} 16. Bxd4 {[%clk 0:01:04]}  cxd4 {[%clk 0:01:01]} 17. Qxd4 {[%clk 0:01:05]}  Nxc3 {[%clk 0:01:00]} 18. bxc3 {[%clk 0:00:57]}  Qa5 {[%clk 0:00:57]} 19. a4 {[%clk 0:00:42]}  Rfd8 {[%clk 0:00:50]} 20. Qe4 {[%clk 0:00:43]}  Qxc3 {[%clk 0:00:47]} 21. Rf3 {[%clk 0:00:43]}  Rd4 {[%clk 0:00:40]} 22. Qe2 {[%clk 0:00:32]}  Rxa4 {[%clk 0:00:39]} 23. Re1 {[%clk 0:00:32]}  e6 {[%clk 0:00:34]} 24. Kh1 {[%clk 0:00:29]}  Qc5 {[%clk 0:00:31]} 25. g4 {[%clk 0:00:28]}  Ra5 {[%clk 0:00:22]} 26. Ref1 {[%clk 0:00:28]}  Rba8 {[%clk 0:00:21]} 27. Re1 {[%clk 0:00:28]}  Ra1 {[%clk 0:00:21]} 28. Rff1 {[%clk 0:00:28]}  Rxe1 {[%clk 0:00:20]} 29. Rxe1 {[%clk 0:00:28]}  Ra4 {[%clk 0:00:19]} 30. Rf1 {[%clk 0:00:28]}  h6 {[%clk 0:00:16]} 31. Qf3 {[%clk 0:00:21]}  Qd4 {[%clk 0:00:16]} 32. Kg2 {[%clk 0:00:17]}  Ra7 {[%clk 0:00:13]} 33. Kg3 {[%clk 0:00:17]}  g5 {[%clk 0:00:13]} 34. Kg2 {[%clk 0:00:14]}  gxf4 {[%clk 0:00:12]} 35. Qxf4 {[%clk 0:00:14]}  Qxf4 {[%clk 0:00:12]} 36. Rxf4 {[%clk 0:00:15]}  Bxe5 {[%clk 0:00:13]} 37. Re4 {[%clk 0:00:14]}  Bf6 {[%clk 0:00:11]} 38. Rf4 {[%clk 0:00:14]}  Kg7 {[%clk 0:00:11]} 39. Rf1 {[%clk 0:00:13]}  Rb7 {[%clk 0:00:10]} 40. Re1 {[%clk 0:00:13]}  Rb6 {[%clk 0:00:10]} 41. Re2 {[%clk 0:00:13]}  Bg5 {[%clk 0:00:10]} 42. Re1 {[%clk 0:00:13]}  Kf6 {[%clk 0:00:09]} 43. Rf1+ {[%clk 0:00:12]}  Ke7 {[%clk 0:00:10]} 44. Re1 {[%clk 0:00:12]}  Rb4 {[%clk 0:00:10]} 45. Re4 {[%clk 0:00:11]}  Rb1 {[%clk 0:00:10]} 46. Ra4 {[%clk 0:00:10]}  Be3 {[%clk 0:00:08]} 47. Re4 {[%clk 0:00:09]}  Bc5 {[%clk 0:00:08]} 48. Rc4 {[%clk 0:00:09]}  Kd6 {[%clk 0:00:08]} 49. Rf4 {[%clk 0:00:08]}  Ke7 {[%clk 0:00:08]} 50. Re4 {[%clk 0:00:07]}  Rg1+ {[%clk 0:00:08]} 51. Kh2 {[%clk 0:00:07]}  Rd1 {[%clk 0:00:07]} 52. Rf4 {[%clk 0:00:07]}  Bd6 {[%clk 0:00:07]} 53. Kg3 {[%clk 0:00:08]}  Bxf4+ {[%clk 0:00:04]} 54. Kxf4 {[%clk 0:00:08]}  Kf6 {[%clk 0:00:04]} 55. Kg3 {[%clk 0:00:09]}  Re1 {[%clk 0:00:05]} 56. Kf2 {[%clk 0:00:08]}  Re5 {[%clk 0:00:05]} 57. Kg3 {[%clk 0:00:08]}  Re3+ {[%clk 0:00:05]} 58. Kg2 {[%clk 0:00:08]}  Kg5 {[%clk 0:00:05]} 59. Bh7 {[%clk 0:00:06]}  f6 {[%clk 0:00:06]} 60. Bg8 {[%clk 0:00:05]}  Kh4 {[%clk 0:00:05]} 61. Bf7 {[%clk 0:00:05]}  e5 {[%clk 0:00:05]} 62. Be6 {[%clk 0:00:04]}  Re2+ {[%clk 0:00:05]} 63. Kf3 {[%clk 0:00:04]}  Rxc2 {[%clk 0:00:06]} 64. Ke4 {[%clk 0:00:05]}  Kg5 {[%clk 0:00:06]} 65. h4+ {[%clk 0:00:03]}  Kxh4 {[%clk 0:00:06]} 66. Kf5 {[%clk 0:00:04]}  Rf2+ {[%clk 0:00:07]} 67. Kg6 {[%clk 0:00:05]}  Rf4 {[%clk 0:00:07]} 68. Bf5 {[%clk 0:00:05]}  e4 {[%clk 0:00:06]} 69. Kxf6 {[%clk 0:00:06]}  e3 {[%clk 0:00:06]} 70. Ke5 {[%clk 0:00:07]}  Rxf5+ {[%clk 0:00:05]} 71. gxf5 {[%clk 0:00:06]}  e2 {[%clk 0:00:05]} 72. f6 {[%clk 0:00:06]}  e1=Q+ {[%clk 0:00:06]} 73. Kf5 {[%clk 0:00:07]}  Qf2+ {[%clk 0:00:06]} 74. Kg6 {[%clk 0:00:08]}  h5 {[%clk 0:00:07]} 75. f7 {[%clk 0:00:08]}  Kg4 {[%clk 0:00:08]} 76. Kg7 {[%clk 0:00:09]}  h4 {[%clk 0:00:08]} 77. f8=Q {[%clk 0:00:09]}  Qxf8+ {[%clk 0:00:09]} 78. Kxf8 {[%clk 0:00:10]}  h3 {[%clk 0:00:10]} 79. Kg7 {[%clk 0:00:11]}  h2 {[%clk 0:00:11]} 80. Kh6 {[%clk 0:00:12]}  h1=Q+ {[%clk 0:00:12]} 81. Kg6 {[%clk 0:00:10]}  Qc6+ {[%clk 0:00:12]} 0-1


[Site "https://www.chess.com"]

[Event "Titled Tuesday Blitz August 08 Early 2023"]
[White "Ovchinnikov, Vsevolod"]
[Black "Lesbekova, Assel"]
[WhiteFideId "24176842"]
[BlackFideId "13713248"]
[WhiteElo "2646"]
[BlackElo "2335"]
[Result "1-0"]
[Round "1"]
[TimeControl "180+1"]
[Date "2023.08.08"]
[WhiteClock "0:00:13"]
[BlackClock "0:00:08"]
[Board "164"]

1. d4 {[%clk 0:02:56]}  d5 {[%clk 0:02:59]} 2. c4 {[%clk 0:02:57]}  e6 {[%clk 0:03:00]} 3. Nf3 {[%clk 0:02:57]}  a6 {[%clk 0:03:00]} 4. Nbd2 {[%clk 0:02:51]}  Nf6 {[%clk 0:02:54]} 5. g3 {[%clk 0:02:46]}  dxc4 {[%clk 0:02:53]} 6. Nxc4 {[%clk 0:02:46]}  b5 {[%clk 0:02:54]} 7. Nce5 {[%clk 0:02:36]}  Bb7 {[%clk 0:02:53]} 8. Bg2 {[%clk 0:02:37]}  Nbd7 {[%clk 0:02:52]} 9. Nd3 {[%clk 0:02:30]}  c5 {[%clk 0:02:49]} 10. O-O {[%clk 0:02:22]}  cxd4 {[%clk 0:02:41]} 11. Nxd4 {[%clk 0:02:22]}  Bxg2 {[%clk 0:02:41]} 12. Kxg2 {[%clk 0:02:23]}  Nc5 {[%clk 0:02:39]} 13. Ne5 {[%clk 0:01:52]}  Qd5+ {[%clk 0:02:35]} 14. Ndf3 {[%clk 0:01:52]}  O-O-O {[%clk 0:02:17]} 15. Qxd5 {[%clk 0:01:49]}  Rxd5 {[%clk 0:02:17]} 16. Nxf7 {[%clk 0:01:48]}  Rg8 {[%clk 0:02:18]} 17. Bf4 {[%clk 0:01:36]}  h6 {[%clk 0:02:15]} 18. Rac1 {[%clk 0:01:19]}  g5 {[%clk 0:02:10]} 19. Be3 {[%clk 0:01:19]}  Kb7 {[%clk 0:02:07]} 20. h3 {[%clk 0:01:11]}  Ncd7 {[%clk 0:01:51]} 21. Nd8+ {[%clk 0:01:06]}  Kb8 {[%clk 0:01:48]} 22. Nxe6 {[%clk 0:01:07]}  Bd6 {[%clk 0:01:43]} 23. Rfd1 {[%clk 0:01:05]}  Re8 {[%clk 0:01:42]} 24. Ned4 {[%clk 0:01:03]}  Kb7 {[%clk 0:01:40]} 25. Nb3 {[%clk 0:01:02]}  Nb6 {[%clk 0:01:32]} 26. Na5+ {[%clk 0:00:50]}  Ka7 {[%clk 0:01:32]} 27. Nd4 {[%clk 0:00:34]}  Rxe3 {[%clk 0:01:02]} 28. fxe3 {[%clk 0:00:34]}  Ka8 {[%clk 0:01:01]} 29. Ndc6 {[%clk 0:00:32]}  Na4 {[%clk 0:00:51]} 30. b3 {[%clk 0:00:32]}  Nb6 {[%clk 0:00:44]} 31. g4 {[%clk 0:00:24]}  Rxd1 {[%clk 0:00:40]} 32. Rxd1 {[%clk 0:00:25]}  Nbd5 {[%clk 0:00:36]} 33. Kf3 {[%clk 0:00:24]}  Bc7 {[%clk 0:00:33]} 34. a3 {[%clk 0:00:21]}  Bb6 {[%clk 0:00:28]} 35. Rd3 {[%clk 0:00:19]}  Bc7 {[%clk 0:00:20]} 36. b4 {[%clk 0:00:19]}  Bb6 {[%clk 0:00:20]} 37. e4 {[%clk 0:00:17]}  Nf4 {[%clk 0:00:20]} 38. Rd6 {[%clk 0:00:17]}  Ne8 {[%clk 0:00:19]} 39. Rxh6 {[%clk 0:00:16]}  Bxa5 {[%clk 0:00:15]} 40. Nxa5 {[%clk 0:00:15]}  Ng7 {[%clk 0:00:14]} 41. Nc6 {[%clk 0:00:13]}  Nge6 {[%clk 0:00:08]} 42. e3 {[%clk 0:00:13]} 1-0


[Site "https://www.chess.com"]

[Event "Titled Tuesday Blitz August 08 Early 2023"]
[White "Lopez Gracia, Fernando"]
[Black "Yaran, Siar"]
[WhiteFideId "2207184"]
[BlackFideId "6323006"]
[WhiteElo "2334"]
[BlackElo "2644"]
[Result "0-1"]
[Round "1"]
[TimeControl "180+1"]
[Date "2023.08.08"]
[WhiteClock "0:00:39"]
[BlackClock "0:00:25"]
[Board "165"]

1. e4 {[%clk 0:02:57]}  e6 {[%clk 0:03:00]} 2. d4 {[%clk 0:02:56]}  d5 {[%clk 0:02:58]} 3. e5 {[%clk 0:02:57]}  c5 {[%clk 0:02:58]} 4. c3 {[%clk 0:02:57]}  Bd7 {[%clk 0:02:56]} 5. Nf3 {[%clk 0:02:58]}  Qb6 {[%clk 0:02:54]} 6. Be2 {[%clk 0:02:58]}  Bb5 {[%clk 0:02:54]} 7. dxc5 {[%clk 0:02:48]}  Bxc5 {[%clk 0:02:48]} 8. b4 {[%clk 0:02:48]}  Bxf2+ {[%clk 0:02:43]} 9. Kf1 {[%clk 0:02:48]}  a6 {[%clk 0:01:47]} 10. Bxb5+ {[%clk 0:02:43]}  axb5 {[%clk 0:01:45]} 11. Qe2 {[%clk 0:02:40]}  Bc5 {[%clk 0:01:32]} 12. bxc5 {[%clk 0:02:39]}  Qxc5 {[%clk 0:01:33]} 13. Be3 {[%clk 0:02:38]}  Qc4 {[%clk 0:01:27]} 14. Nbd2 {[%clk 0:02:34]}  Qa4 {[%clk 0:01:21]} 15. Kf2 {[%clk 0:02:30]}  Nc6 {[%clk 0:01:21]} 16. Rhb1 {[%clk 0:02:29]}  Nge7 {[%clk 0:01:13]} 17. Qxb5 {[%clk 0:02:27]}  Qc2 {[%clk 0:01:13]} 18. Nd4 {[%clk 0:02:12]}  Qg6 {[%clk 0:01:10]} 19. N2f3 {[%clk 0:02:10]}  O-O {[%clk 0:01:09]} 20. Qe2 {[%clk 0:01:58]}  Rfb8 {[%clk 0:01:02]} 21. Kg1 {[%clk 0:01:57]}  h6 {[%clk 0:01:02]} 22. Qc2 {[%clk 0:01:49]}  Qg4 {[%clk 0:00:59]} 23. h3 {[%clk 0:01:47]}  Qg3 {[%clk 0:00:57]} 24. Bf2 {[%clk 0:01:38]}  Qf4 {[%clk 0:00:56]} 25. g3 {[%clk 0:01:38]}  Qe4 {[%clk 0:00:54]} 26. Qxe4 {[%clk 0:01:34]}  dxe4 {[%clk 0:00:55]} 27. Nd2 {[%clk 0:01:31]}  Nxe5 {[%clk 0:00:50]} 28. Nxe4 {[%clk 0:01:31]}  Nd5 {[%clk 0:00:49]} 29. Rb3 {[%clk 0:01:23]}  Ra4 {[%clk 0:00:48]} 30. Kg2 {[%clk 0:01:22]}  b6 {[%clk 0:00:44]} 31. Nd2 {[%clk 0:01:17]}  Rba8 {[%clk 0:00:43]} 32. a3 {[%clk 0:01:14]}  Rc8 {[%clk 0:00:41]} 33. N2f3 {[%clk 0:01:14]}  Nd3 {[%clk 0:00:37]} 34. Rd1 {[%clk 0:01:10]}  Nc5 {[%clk 0:00:35]} 35. Rb2 {[%clk 0:01:06]}  Nxc3 {[%clk 0:00:34]} 36. Rc1 {[%clk 0:01:06]}  Nd3 {[%clk 0:00:35]} 37. Rbc2 {[%clk 0:01:00]}  Nxc1 {[%clk 0:00:34]} 38. Rxc1 {[%clk 0:01:01]}  Raa8 {[%clk 0:00:31]} 39. Ne5 {[%clk 0:00:54]}  Nd5 {[%clk 0:00:30]} 40. Rb1 {[%clk 0:00:53]}  Rxa3 {[%clk 0:00:29]} 41. Rxb6 {[%clk 0:00:53]}  Nxb6 {[%clk 0:00:28]} 42. Nb5 {[%clk 0:00:51]}  Ra2 {[%clk 0:00:28]} 43. Kf3 {[%clk 0:00:48]}  Nd5 {[%clk 0:00:28]} 44. Nd6 {[%clk 0:00:46]}  Rc3+ {[%clk 0:00:27]} 45. Kg2 {[%clk 0:00:38]}  f6 {[%clk 0:00:27]} 46. Nd3 {[%clk 0:00:38]}  Rxd3 {[%clk 0:00:27]} 47. Ne4 {[%clk 0:00:38]}  f5 {[%clk 0:00:25]} 48. Nc5 {[%clk 0:00:39]}  Rdd2 {[%clk 0:00:25]} 49. Kf3 {[%clk 0:00:39]}  Rxf2# {[%clk 0:00:25]} 0-1


[Site "https://www.chess.com"]

[Event "Titled Tuesday Blitz August 08 Early 2023"]
[White "Osinovsky, Stepan"]
[Black "Skuhala, Jernej"]
[WhiteFideId "4157354"]
[BlackFideId "14605651"]
[WhiteElo "2333"]
[BlackElo "2639"]
[Result "0-1"]
[Round "1"]
[TimeControl "180+1"]
[Date "2023.08.08"]
[WhiteClock "0:00:00"]
[BlackClock "0:01:13"]
[Board "167"]

1. e4 {[%clk 0:02:53]}  c6 {[%clk 0:02:57]} 2. d3 {[%clk 0:02:53]}  d5 {[%clk 0:02:57]} 3. Nd2 {[%clk 0:02:54]}  g6 {[%clk 0:02:56]} 4. g3 {[%clk 0:02:53]}  Bg7 {[%clk 0:02:49]} 5. Bg2 {[%clk 0:02:51]}  e6 {[%clk 0:02:50]} 6. Ngf3 {[%clk 0:02:50]}  Ne7 {[%clk 0:02:39]} 7. h4 {[%clk 0:02:50]}  Nd7 {[%clk 0:02:35]} 8. h5 {[%clk 0:02:50]}  b6 {[%clk 0:02:35]} 9. Qe2 {[%clk 0:02:45]}  Bb7 {[%clk 0:02:35]} 10. c3 {[%clk 0:02:43]}  Qc7 {[%clk 0:02:35]} 11. a4 {[%clk 0:02:41]}  O-O-O {[%clk 0:02:33]} 12. a5 {[%clk 0:02:37]}  Kb8 {[%clk 0:02:30]} 13. Nb3 {[%clk 0:02:12]}  e5 {[%clk 0:02:21]} 14. Ng5 {[%clk 0:02:02]}  Rdf8 {[%clk 0:02:17]} 15. h6 {[%clk 0:01:28]}  Bf6 {[%clk 0:02:15]} 16. axb6 {[%clk 0:01:11]}  axb6 {[%clk 0:02:12]} 17. Qf3 {[%clk 0:01:07]}  Bxg5 {[%clk 0:02:11]} 18. Bxg5 {[%clk 0:01:06]}  f6 {[%clk 0:02:11]} 19. Be3 {[%clk 0:00:59]}  c5 {[%clk 0:02:11]} 20. Qe2 {[%clk 0:00:51]}  f5 {[%clk 0:02:01]} 21. Bg5 {[%clk 0:00:27]}  Nc8 {[%clk 0:01:49]} 22. exd5 {[%clk 0:00:25]}  Re8 {[%clk 0:01:43]} 23. c4 {[%clk 0:00:24]}  Nd6 {[%clk 0:01:39]} 24. Nd2 {[%clk 0:00:19]}  Rhf8 {[%clk 0:01:38]} 25. O-O {[%clk 0:00:18]}  Nf7 {[%clk 0:01:33]} 26. Qe3 {[%clk 0:00:15]}  Nxg5 {[%clk 0:01:26]} 27. Qxg5 {[%clk 0:00:16]}  f4 {[%clk 0:01:26]} 28. Rae1 {[%clk 0:00:15]}  Rf5 {[%clk 0:01:26]} 29. Qg4 {[%clk 0:00:11]}  Nf6 {[%clk 0:01:26]} 30. Qd1 {[%clk 0:00:10]}  Rh5 {[%clk 0:01:22]} 31. g4 {[%clk 0:00:09]}  Rh4 {[%clk 0:01:21]} 32. g5 {[%clk 0:00:05]}  Nh5 {[%clk 0:01:20]} 33. Ne4 {[%clk 0:00:02]}  Rf8 {[%clk 0:01:15]} 34. Bf3 {[%clk 0:00:00]}  Qd7 {[%clk 0:01:13]} 0-1


[Site "https://www.chess.com"]